bitfinex-derivatives/quotes_ETHF0:USTF0_20250115
["timestamp","ask_amount","ask_price","bid_price","bid_amount"]
[1736948671215,6.76458673,3271.2,3270.5,3.2078]
[1736948671416,0.30579,3270.7,3270.5,0.3058]
[1736948672120,0.7644,3271.0,3270.3,1.901]
[1736948672413,0.30581,3270.4,3270.3,1.901]
[1736948672623,0.3058,3270.6,3270.4,0.30581]
[1736948672923,3.32480856,3270.5,3270.3,3.2078]
[1736948673120,0.30581,3270.4,3270.3,3.2078]
[1736948673620,3.55995485,3270.4,3270.3,3.2078]
[1736948674010,6.46194485,3270.4,3269.6,1.901]
[1736948674212,0.30588,3269.7,3269.6,2.20689]
[1736948674411,0.30587,3269.8,3269.7,0.30588]
[1736948674619,0.30582,3270.3,3270.2,0.30583]
[1736948674821,0.30584,3270.2,3270.1,0.30584]
[1736948675010,3.2078,3270.4,3269.9,0.30585]
[1736948675011,0.30584,3270.1,3269.9,0.30585]
[1736948675214,3.2078,3270.4,3269.6,1.901]
[1736948675610,4.16342788,3270.3,3269.6,1.901]
[1736948675827,0.30597,3268.8,3268.6,3.51378]
[1736948676029,3.2078,3269.5,3268.6,3.2078]
[1736948676214,3.31350476,3270.0,3268.6,3.2078]
[1736948676215,4.9878,3269.9,3268.6,3.2078]
[1736948676420,3.2078,3270.2,3269.1,0.76484]
[1736948676721,8.07320476,3270.5,3269.1,0.76484]
[1736948676722,3.55678673,3270.7,3269.9,3.2078]
[1736948676926,5.6821,3271.0,3269.9,3.2078]
[1736948677126,4.9177,3271.0,3269.9,3.2078]
[1736948677326,3.35842113,3270.8,3270.1,0.30584]
[1736948677529,0.3058,3270.6,3270.3,0.30582]
[1736948677827,8.1255,3271.0,3269.9,3.2078]
[1736948678021,0.30583,3270.3,3270.1,0.30584]
[1736948678223,3.2078,3270.6,3269.8,1.901]
[1736948678418,11.81107753,3271.0,3269.9,3.2078]
[1736948678627,3.33775493,3270.7,3269.9,3.2078]
[1736948678829,0.30579,3270.7,3270.4,3.51361]
[1736948679028,0.30577,3270.9,3270.4,3.51361]
[1736948679223,8.49757277,3271.0,3270.5,0.3058]
[1736948679424,3.3879535,3270.9,3270.5,0.3058]
[1736948679630,3.3879535,3270.9,3270.4,3.2078]
[1736948679828,0.3058,3270.6,3270.3,0.30582]
[1736948680128,3.3879535,3270.9,3270.0,3.2078]
[1736948680329,0.3058,3270.6,3270.2,0.30583]
[1736948680519,3.3879535,3270.9,3270.0,3.2078]
[1736948680726,0.30582,3270.3,3270.0,3.2078]
[1736948680927,0.3058,3270.6,3270.2,0.30583]
[1736948681128,0.3058,3270.6,3270.0,3.2078]
[1736948681129,0.76449,3270.7,3270.0,3.2078]
[1736948681332,0.30584,3270.2,3270.0,3.2078]
[1736948681528,0.30584,3270.2,3269.8,0.30586]
[1736948681727,3.31350476,3271.0,3269.7,1.898]
[1736948681935,0.76445,3270.8,3269.9,0.30586]
[1736948682123,3.469966,3270.6,3269.9,0.30586]
[1736948682332,3.2078,3270.7,3269.7,1.898]
[1736948682638,3.469966,3270.5,3269.8,1.898]
[1736948682929,0.30586,3269.9,3269.8,1.898]
[1736948683131,6.52130476,3270.0,3269.2,3.2078]
[1736948683334,3.2078,3269.6,3269.0,1.898]
[1736948683534,3.2078,3269.2,3268.7,1.898]
[1736948683927,0.30596,3268.9,3268.7,1.898]
[1736948684130,3.2078,3269.2,3268.7,1.898]
[1736948684325,0.30596,3268.8,3268.7,1.898]
[1736948685135,3.2078,3269.2,3268.3,3.2078]
[1736948685331,0.306,3268.4,3268.3,3.2078]
[1736948685737,7.7486,3269.2,3268.3,3.2078]
[1736948686135,0.30599,3268.5,3268.3,3.2078]
[1736948686333,3.22095759,3269.1,3268.3,3.2078]
[1736948686641,3.2078,3269.2,3268.3,3.2078]
[1736948686833,0.76485,3269.1,3268.3,3.2078]
[1736948687030,0.30594,3269.0,3268.3,3.2078]
[1736948687235,0.30599,3268.6,3268.3,3.51381]
[1736948687427,3.45161493,3268.9,3268.3,3.2078]
[1736948687630,6.78767277,3269.6,3268.8,3.2078]
[1736948687830,6.78767277,3269.6,3269.1,0.30593]
[1736948688031,3.57987277,3269.6,3268.8,3.2078]
[1736948688338,3.57987277,3269.6,3268.9,4.8327]
[1736948688538,3.57987277,3269.6,3269.0,1.898]
[1736948688735,0.3059,3269.5,3269.2,0.30592]
[1736948688930,4.9868,3269.9,3269.0,1.898]
[1736948689139,3.57987277,3270.0,3269.2,3.2078]
[1736948689734,3.46334786,3269.9,3269.2,3.2078]
[1736948690039,3.57987277,3270.0,3269.2,3.2078]
[1736948690237,3.51364,3270.2,3269.8,0.30587]
[1736948690441,0.30583,3270.3,3269.9,2.20386]
[1736948690640,0.30582,3270.4,3270.1,0.30584]
[1736948690836,3.4926451,3270.5,3269.9,1.898]
[1736948691038,6.78767277,3270.6,3269.9,1.898]
[1736948691039,3.88567277,3270.6,3270.2,0.30583]
[1736948691242,3.57987277,3270.8,3270.2,0.30583]
[1736948691442,0.3058,3270.6,3270.2,0.30583]
[1736948691637,0.30581,3270.5,3270.2,0.30583]
[1736948692140,0.3058,3270.6,3270.3,0.30582]
[1736948692342,0.30581,3270.5,3270.1,0.30584]
[1736948692640,0.76442,3271.0,3270.0,3.2078]
[1736948692841,0.30579,3270.7,3270.0,3.2078]
[1736948693041,0.30581,3270.5,3270.2,0.30583]
[1736948693441,0.3058,3270.6,3270.0,3.2078]
[1736948693639,0.30579,3270.7,3270.4,0.30581]
[1736948693845,4.7791,3271.2,3270.0,7.7685]
[1736948693846,0.30578,3270.8,3270.0,7.7685]
[1736948694143,0.30576,3271.0,3270.6,0.30579]
[1736948694339,3.32412565,3271.1,3270.4,3.2078]
[1736948694549,0.76438,3271.1,3270.4,3.2078]
[1736948694740,4.08848565,3271.2,3270.4,3.2078]
[1736948694940,0.30577,3270.9,3270.4,3.2078]
[1736948695144,6.78767277,3271.3,3270.4,3.2078]
[1736948695341,0.30577,3270.9,3270.5,0.3058]
[1736948695543,0.30577,3270.9,3270.4,3.2078]
[1736948695544,0.30577,3270.9,3270.6,0.30579]
[1736948695845,3.2078,3271.3,3270.4,3.2078]
[1736948696046,0.30575,3271.1,3270.4,3.2078]
[1736948696245,3.41191746,3271.2,3270.8,0.30577]
[1736948696442,0.37744,3271.5,3270.5,0.3058]
[1736948696649,0.30575,3271.1,3270.8,3.51357]
[1736948696851,3.41191746,3271.4,3270.9,0.30576]
[1736948697061,3.41191746,3271.4,3270.8,5.1058]
[1736948697354,0.30574,3271.3,3270.9,0.30576]
[1736948697555,0.30574,3271.3,3270.9,0.30577]
[1736948697750,0.30575,3271.2,3270.8,5.41157]
[1736948697951,0.30575,3271.2,3270.8,5.1058]
[1736948698150,3.41191746,3271.4,3270.8,5.1058]
[1736948698353,0.37744,3271.5,3271.2,3.2078]
[1736948698553,0.37744,3271.5,3271.4,0.30572]
[1736948699957,0.37744,3271.5,3271.2,7.9382]
[1736948700353,0.68316,3271.5,3271.1,0.30574]
[1736948700562,0.37744,3271.5,3271.4,0.30572]
[1736948701059,4.6548,3272.8,3271.4,5.0]
[1736948701258,3.57987277,3272.9,3272.5,0.30561]
[1736948701463,3.57987277,3272.9,3272.3,3.2078]
[1736948701857,3.57987277,3272.9,3272.7,3.2078]
[1736948702059,3.57987277,3272.9,3272.8,1.897]
[1736948702460,3.57987277,3272.9,3272.8,2.20259]
[1736948702656,3.57987277,3272.9,3272.8,0.30559]
[1736948702860,3.57987277,3272.9,3272.8,2.20259]
[1736948703169,0.30555,3273.3,3272.8,1.897]
[1736948703362,3.31350476,3273.5,3272.3,3.2078]
[1736948703555,3.43445123,3272.9,3272.3,0.30563]
[1736948703754,3.43445123,3272.9,3271.9,3.2078]
[1736948703755,3.2078,3273.3,3271.9,3.2078]
[1736948704059,3.2078,3273.3,3272.3,3.2078]
[1736948704255,3.2078,3273.3,3273.1,0.30556]
[1736948704457,3.2078,3273.7,3272.8,1.897]
[1736948704768,3.57987277,3273.9,3273.8,0.3055]
[1736948705264,7.0229335,3273.9,3273.1,3.2078]
[1736948705768,3.57987277,3273.9,3273.8,0.3055]
[1736948705970,4.904,3274.1,3273.5,3.2078]
[1736948706462,4.904,3274.1,3273.8,0.30549]
[1736948706662,4.904,3274.1,3273.5,3.51332]
[1736948706865,5.20947,3274.1,3273.5,3.51332]
[1736948707060,0.30548,3274.0,3273.5,3.2078]
[1736948707361,4.904,3274.1,3273.5,3.2078]
[1736948707667,0.30548,3274.0,3273.5,3.51332]
[1736948707867,4.904,3274.1,3273.1,3.2078]
[1736948708068,0.3055,3273.8,3273.3,0.30554]
[1736948708366,3.2078,3274.4,3273.1,3.2078]
[1736948708561,3.2078,3274.4,3273.9,3.2078]
[1736948708760,3.51324,3274.4,3274.0,1.893]
[1736948708958,3.2078,3274.4,3274.0,1.893]
[1736948709168,3.2078,3274.4,3274.0,2.19847]
[1736948709366,3.2078,3274.4,3274.0,1.893]
[1736948709660,13.38909476,3275.0,3274.4,0.30544]
[1736948709661,9.3121,3275.0,3274.4,0.30544]
[1736948709871,4.5507,3275.0,3274.7,3.51321]
[1736948710066,4.5507,3275.0,3274.9,0.30539]
[1736948710267,4.7614,3275.8,3274.9,1.893]
[1736948710568,3.31704959,3275.7,3274.9,1.893]
[1736948710767,3.31704959,3275.7,3275.2,3.2078]
[1736948711173,4.7614,3275.8,3275.2,3.2078]
[1736948711566,5.06671,3275.8,3275.2,3.51316]
[1736948711769,4.7614,3275.8,3275.3,0.30535]
[1736948711971,4.7614,3275.8,3275.2,3.2078]
[1736948711972,0.30532,3275.7,3275.2,3.51316]
[1736948712171,0.30528,3276.1,3275.6,3.51313]
[1736948712371,3.2078,3276.6,3275.6,3.2078]
[1736948712674,4.9974,3276.7,3275.6,3.2078]
[1736948712675,0.30532,3275.8,3275.6,3.2078]
[1736948712871,3.2078,3276.2,3275.6,3.2078]
[1736948713072,0.30532,3275.7,3275.6,3.2078]
[1736948713269,0.30535,3275.4,3275.2,3.2078]
[1736948713569,0.93071055,3276.1,3274.4,3.2078]
[1736948713570,3.19611234,3275.3,3274.4,3.2078]
[1736948713776,3.2078,3274.8,3274.0,3.2078]
[1736948713977,0.30547,3274.1,3274.0,3.2078]
[1736948714168,0.30547,3274.2,3273.9,1.892]
[1736948714365,3.2078,3274.3,3273.9,1.892]
[1736948714678,3.34596948,3274.8,3274.2,0.30545]
[1736948714873,3.34596948,3274.8,3273.9,5.0998]
[1736948715176,3.2078,3274.5,3273.9,5.0998]
[1736948715370,3.2078,3274.5,3273.9,5.40528]
[1736948715573,0.14654776,3274.4,3273.9,5.0998]
[1736948715881,3.2078,3274.9,3274.0,0.30548]
[1736948716082,3.9713,3274.9,3273.9,5.0998]
[1736948716379,0.30547,3274.1,3273.9,5.0998]
[1736948716764,3.2078,3274.5,3273.9,5.0998]
[1736948717177,3.35615275,3274.4,3274.3,0.30545]
[1736948717369,4.6939,3275.3,3275.0,0.30538]
[1736948717571,0.30534,3275.5,3275.1,3.2078]
[1736948717876,3.45058648,3275.4,3274.5,3.2078]
[1736948718178,3.2078,3274.9,3274.5,1.892]
[1736948718473,3.45058648,3275.4,3274.5,1.892]
[1736948718474,0.76342,3275.2,3274.5,1.892]
[1736948718663,3.49145942,3274.8,3274.5,1.892]
[1736948718865,0.30546,3274.2,3274.1,3.2078]
[1736948719066,0.30545,3274.4,3274.1,5.0998]
[1736948719273,3.2078,3274.9,3274.1,5.0998]
[1736948719274,0.30546,3274.2,3274.1,3.2078]
[1736948719477,0.17827628,3274.3,3273.8,1.892]
[1736948719670,0.30549,3273.9,3273.8,1.892]
[1736948720073,3.97155,3273.9,3273.1,3.2078]
[1736948720277,0.30555,3273.2,3273.1,3.2078]
[1736948720487,3.2078,3273.5,3272.7,3.2078]
[1736948720871,3.19426372,3273.4,3272.7,3.2078]
[1736948721174,4.5402,3273.8,3273.2,3.2078]
[1736948721373,0.30553,3273.5,3273.3,1.892]
[1736948721574,0.30553,3273.4,3273.3,1.892]
[1736948722084,3.51333,3273.4,3273.3,1.892]
[1736948722277,3.51333,3273.4,3272.6,3.2078]
[1736948722278,0.3056,3272.7,3272.6,3.2078]
[1736948722679,6.67240555,3273.4,3272.2,3.2078]
[1736948722680,0.76393,3273.0,3272.2,3.2078]
[1736948722871,0.76389,3273.2,3272.2,3.51344]
[1736948723176,4.6276,3273.3,3272.6,3.5134]
[1736948723478,0.76371,3274.0,3273.2,3.2078]
[1736948723779,0.30551,3273.7,3273.6,3.2078]
[1736948724179,0.30547,3274.1,3273.6,3.2078]
[1736948724376,4.5402,3274.4,3274.0,3.2078]
[1736948724572,0.30546,3274.2,3274.0,3.2078]
[1736948724773,0.30545,3274.4,3274.0,3.51328]
[1736948724974,3.2078,3274.8,3274.0,3.51328]
[1736948724975,3.28306898,3274.7,3274.0,3.2078]
[1736948725173,3.28306898,3274.7,3273.4,1.892]
[1736948725174,4.04662898,3274.7,3273.6,3.2078]
[1736948725379,3.2078,3274.4,3273.6,3.2078]
[1736948725586,0.76363,3274.3,3273.6,3.2078]
[1736948725770,0.30551,3273.7,3273.6,3.2078]
[1736948726082,3.2078,3274.4,3273.6,3.2078]
[1736948726582,0.3055,3273.8,3273.6,3.2078]
[1736948726774,0.30551,3273.7,3273.6,3.2078]
[1736948726975,3.97141,3274.4,3273.6,3.2078]
[1736948727174,3.2078,3274.4,3273.6,3.2078]
[1736948727372,0.30544,3274.5,3274.0,0.30547]
[1736948727582,0.30545,3274.4,3274.0,3.2078]
[1736948727779,0.30545,3274.3,3274.0,3.2078]
[1736948728084,0.30541,3274.7,3274.0,3.51327]
[1736948728270,3.18150556,3274.8,3274.0,3.2078]
[1736948728474,3.22038935,3275.1,3274.0,3.2078]
[1736948728775,0.30547,3274.1,3274.0,3.2078]
[1736948728971,0.30545,3274.4,3274.0,3.2078]
[1736948729177,0.30547,3274.1,3274.0,3.2078]
[1736948729377,0.30549,3273.9,3273.6,3.2078]
[1736948729677,3.97129,3274.9,3273.6,3.2078]
[1736948729877,0.30546,3274.2,3273.8,0.30549]
[1736948730184,0.30545,3274.3,3273.9,0.30548]
[1736948730381,3.95898536,3274.8,3273.6,3.2078]
[1736948730382,0.76361,3274.4,3273.6,3.2078]
[1736948730584,3.45894095,3274.1,3273.6,3.2078]
[1736948730880,3.45894095,3274.3,3274.0,3.51328]
[1736948731080,3.2078,3274.5,3274.0,3.2078]
[1736948731386,0.30544,3274.5,3274.1,0.30547]
[1736948731580,3.2078,3274.9,3274.0,3.2078]
[1736948731986,3.45907169,3274.8,3274.1,0.30547]
[1736948732185,0.30544,3274.5,3274.1,0.30547]
[1736948732686,3.45907169,3274.8,3274.0,3.2078]
[1736948733081,0.30544,3274.5,3274.1,0.30547]
[1736948733383,0.30543,3274.6,3274.2,0.30545]
[1736948733578,0.30543,3274.6,3274.0,3.2078]
[1736948733579,3.2078,3274.9,3274.1,1.892]
[1736948733784,0.30544,3274.4,3274.1,1.892]
[1736948734083,3.2078,3274.9,3274.1,1.892]
[1736948734289,3.2078,3274.9,3274.8,0.3054]
[1736948734490,0.30536,3275.3,3274.9,0.30539]
[1736948734682,0.30537,3275.2,3274.8,3.5132]
[1736948734880,3.2078,3275.6,3274.8,3.2078]
[1736948735177,0.30539,3274.9,3274.8,3.2078]
[1736948735373,0.30539,3274.9,3274.4,0.30543]
[1736948735374,0.30539,3274.9,3274.5,0.30542]
[1736948735583,0.3054,3274.9,3274.5,0.30542]
[1736948735783,3.97114,3275.6,3274.8,0.3054]
[1736948735987,0.30542,3274.7,3274.4,3.2078]
[1736948736283,0.30541,3274.8,3274.4,3.51324]
[1736948736490,0.76335,3275.5,3274.4,3.51324]
[1736948736683,0.30543,3274.5,3274.4,3.2078]
[1736948736993,0.76351,3274.9,3274.0,3.2078]
[1736948737282,0.76352,3274.8,3274.0,3.2078]
[1736948737490,0.30544,3274.4,3274.0,3.2078]
[1736948737685,3.2078,3275.0,3274.0,3.2078]
[1736948737892,0.76349,3274.9,3274.0,3.2078]
[1736948738079,3.47671625,3274.9,3274.0,3.2078]
[1736948738393,4.7636,3275.2,3274.5,0.30542]
[1736948738589,4.7636,3275.2,3274.6,3.2078]
[1736948738790,6.07475957,3275.4,3274.6,3.2078]
[1736948738791,0.30539,3275.0,3274.6,3.2078]
[1736948739084,3.2078,3275.4,3274.7,1.887]
[1736948739285,0.30536,3275.3,3275.0,0.30538]
[1736948739485,3.2078,3275.4,3274.7,6.8096]
[1736948739486,3.51315,3275.4,3274.7,6.8096]
[1736948739689,3.2078,3275.4,3274.7,6.8096]
[1736948740588,3.2078,3275.4,3274.9,0.30539]
[1736948740786,0.30537,3275.2,3274.8,0.3054]
[1736948740991,0.3054,3274.9,3274.7,1.887]
[1736948741290,0.3054,3274.9,3274.6,3.2078]
[1736948741585,3.27265509,3275.3,3274.8,0.3054]
[1736948741791,0.30539,3275.1,3274.9,0.3054]
[1736948741979,0.30539,3275.0,3274.7,0.30541]
[1736948742184,3.27265509,3275.3,3274.8,0.3054]
[1736948742185,0.30538,3275.1,3274.8,0.3054]
[1736948742484,3.27265509,3275.3,3274.6,3.2078]
[1736948742884,3.27265509,3275.3,3274.9,0.30539]
[1736948743078,0.30538,3275.1,3274.9,0.30539]
[1736948743284,0.30538,3275.1,3274.6,3.2078]
[1736948743285,0.30537,3275.2,3275.0,0.30538]
[1736948743484,3.2078,3275.4,3274.6,3.2078]
[1736948743485,3.2078,3275.4,3275.2,0.30537]
[1736948743690,3.2078,3275.4,3274.7,0.76355]
[1736948743881,3.2078,3275.4,3275.3,0.30536]
[1736948744082,3.2078,3275.4,3274.8,0.76352]
[1736948744294,4.5385,3275.7,3274.8,2.86695957]
[1736948744482,3.2078,3275.9,3275.2,0.76343]
[1736948744682,3.2078,3275.9,3275.3,0.76345]
[1736948744883,0.30535,3275.6,3275.2,0.30539]
[1736948745083,0.30535,3275.6,3275.1,3.2078]
[1736948745084,0.30536,3275.5,3275.3,0.30537]
[1736948745279,3.47036536,3275.8,3275.1,3.2078]
[1736948745489,0.30538,3275.3,3275.1,3.51319]
[1736948745791,3.2078,3275.5,3274.7,3.2078]
[1736948745987,0.3054,3275.1,3274.9,0.30541]
[1736948746191,3.33773354,3275.4,3274.7,3.2078]
[1736948746583,3.2078,3275.5,3274.7,3.2078]
[1736948746786,0.3054,3275.1,3274.8,0.30542]
[1736948746992,0.3054,3275.1,3274.3,3.2078]
[1736948746993,3.2078,3275.1,3274.3,3.2078]
[1736948747285,3.2078,3275.1,3274.7,0.30542]
[1736948747286,0.30541,3274.9,3274.7,0.30542]
[1736948747592,0.30541,3274.8,3274.6,0.30543]
[1736948747794,4.7419,3275.3,3274.6,0.30542]
[1736948748088,3.53218617,3275.0,3274.3,3.2078]
[1736948748291,0.30543,3274.6,3274.4,0.30545]
[1736948748490,3.2078,3275.1,3274.3,3.2078]
[1736948748889,3.18106225,3275.0,3274.3,3.2078]
[1736948749092,3.2078,3275.1,3274.4,0.76363]
[1736948749093,7.09306277,3275.1,3274.4,0.76363]
[1736948749291,7.09306277,3275.1,3274.5,0.30544]
[1736948749495,6.78767277,3275.1,3274.4,0.76363]
[1736948749789,0.30541,3274.9,3274.3,3.2078]
[1736948749992,6.78767277,3275.1,3274.3,3.97144]
[1736948750288,3.57987277,3275.2,3275.1,0.30538]
[1736948751186,3.57987277,3275.2,3274.9,0.3054]
[1736948751388,0.30539,3275.1,3274.9,0.3054]
[1736948751589,0.30537,3275.3,3275.1,0.30538]
[1736948751790,6.78767277,3275.6,3274.7,0.76355]
[1736948751989,3.81647609,3275.5,3275.3,0.30536]
[1736948752183,0.30537,3275.3,3275.1,0.30538]
[1736948752396,0.30536,3275.4,3275.2,0.30537]
[1736948752596,0.30536,3275.4,3275.0,0.30539]
[1736948752801,3.51112609,3275.5,3274.9,3.2078]
[1736948752990,3.57987277,3275.4,3274.9,3.2078]
[1736948753199,0.30537,3275.3,3274.9,3.2078]
[1736948753487,0.30539,3275.1,3274.9,3.2078]
[1736948753687,0.30542,3274.8,3274.6,2.19242]
[1736948753900,0.3054,3274.9,3274.8,0.30541]
[1736948754093,0.3054,3275.0,3274.8,0.3054]
[1736948754491,3.28270845,3275.1,3274.6,1.887]
[1736948754492,8.50797277,3275.3,3274.9,0.3054]
[1736948754697,8.50797277,3275.3,3275.2,0.30537]
[1736948754893,8.50797277,3275.3,3274.9,3.2078]
[1736948755191,8.50797277,3275.3,3275.2,0.30537]
[1736948755392,9.7012637,3275.3,3275.2,0.30537]
[1736948756098,0.30539,3275.1,3274.9,3.5132]
[1736948756294,0.30539,3275.0,3274.9,3.2078]
[1736948756512,0.30541,3274.8,3274.7,0.30542]
[1736948756697,3.41453136,3275.2,3274.6,1.887]
[1736948757198,0.30539,3275.1,3275.0,0.30539]
[1736948757398,0.30539,3275.1,3274.7,0.30542]
[1736948757596,3.41453136,3275.2,3274.6,1.887]
[1736948757899,4.17799136,3275.2,3274.6,1.887]
[1736948758097,3.59035943,3275.1,3274.6,1.887]
[1736948758299,3.89574943,3275.1,3274.7,0.30542]
[1736948758499,0.3054,3275.0,3274.7,0.30542]
[1736948758703,0.3054,3275.0,3274.9,0.3054]
[1736948759004,3.59035943,3275.1,3275.0,0.30539]
[1736948759195,5.0785437,3275.2,3275.1,0.30538]
[1736948759694,5.0785437,3275.2,3274.6,1.887]
[1736948759695,0.30539,3275.1,3274.6,1.887]
[1736948759895,0.30538,3275.1,3274.9,0.3054]
[1736948760091,4.7731637,3275.2,3274.6,1.887]
[1736948760297,13.2144337,3275.3,3275.1,0.30538]
[1736948760495,13.2144337,3275.3,3274.8,3.2078]
[1736948760496,12.9090637,3275.3,3274.8,3.2078]
[1736948760705,0.30538,3275.2,3275.0,0.30539]
[1736948761393,12.9090637,3275.3,3275.1,0.30538]
[1736948761601,12.03276487,3275.3,3274.8,3.2078]
[1736948761903,6.79929487,3275.3,3275.2,0.30537]
[1736948762103,6.79929487,3275.3,3274.8,3.2078]
[1736948762300,0.30538,3275.1,3274.8,3.2078]
[1736948762502,0.30538,3275.1,3274.8,3.5132]
[1736948762705,6.79929487,3275.3,3275.0,0.30539]
[1736948762706,0.30538,3275.2,3275.0,0.30539]
[1736948762901,3.2078,3275.3,3274.8,3.2078]
[1736948763103,0.30544,3274.5,3274.4,3.2078]
[1736948763297,0.30546,3274.4,3274.1,4.88927]
[1736948763505,0.30542,3274.8,3274.1,4.5838]
[1736948763801,3.2078,3275.3,3274.5,3.2078]
[1736948763999,3.59149487,3274.7,3274.6,2.19243]
[1736948764205,3.59149487,3274.7,3274.6,5.81471071]
[1736948764505,3.58725434,3274.7,3274.6,5.81471071]
[1736948765102,3.58725434,3274.7,3274.6,5.40023]
[1736948765304,3.58725434,3274.7,3274.6,5.81465101]
[1736948765502,3.58725434,3274.7,3274.6,10.81465101]
[1736948765704,0.30534,3275.6,3274.6,10.50922101]
[1736948766008,9.8812937,3275.7,3275.4,0.30535]
[1736948766204,9.5759637,3275.7,3275.5,0.30534]
[1736948766507,4.7731637,3275.7,3275.3,3.2078]
[1736948766814,4.7731637,3275.9,3275.8,0.30532]
[1736948767106,4.7731637,3275.9,3275.8,3.51312]
[1736948768201,0.30528,3276.2,3275.9,0.3053]
[1736948768398,0.30529,3276.1,3275.8,3.51311]
[1736948768606,0.30528,3276.2,3275.9,0.3053]
[1736948769003,0.30528,3276.2,3275.8,3.2078]
[1736948769004,4.7731637,3276.2,3275.8,3.2078]
[1736948769212,4.7731637,3276.2,3276.0,0.30529]
[1736948769407,4.7731637,3276.2,3276.1,0.30529]
[1736948769706,4.7731637,3276.2,3275.8,3.2078]
[1736948770103,4.7731637,3276.2,3276.1,0.30529]
[1736948770304,4.7731637,3276.4,3275.9,4.7827]
[1736948770608,4.7731637,3276.4,3276.3,3.51307]
[1736948771705,4.7731637,3276.8,3276.5,0.30524]
[1736948771906,4.7731637,3276.8,3276.5,1.881]
[1736948772113,4.7731637,3276.8,3276.7,3.51303]
[1736948772502,4.7731637,3276.8,3276.7,3.2078]
[1736948773405,9.3907637,3277.3,3276.7,3.2078]
[1736948773811,9.6959437,3277.3,3277.0,0.3052]
[1736948774015,9.3907637,3277.3,3276.7,3.2078]
[1736948774311,0.3052,3277.0,3276.7,3.51303]
[1736948774518,0.30521,3276.9,3276.7,3.2078]
[1736948775013,0.30522,3276.8,3276.1,3.2078]
[1736948775212,3.21678881,3276.8,3276.1,3.2078]
[1736948775412,0.30526,3276.4,3276.1,3.2078]
[1736948775805,7.79308881,3276.8,3276.1,3.2078]
[1736948776005,0.30526,3276.4,3276.1,3.2078]
[1736948776202,0.30523,3276.7,3276.0,1.881]
[1736948776407,7.79308881,3276.8,3276.1,3.2078]
[1736948776912,0.30523,3276.7,3276.1,3.2078]
[1736948777109,0.30524,3276.6,3276.1,3.2078]
[1736948777409,7.79308881,3276.8,3276.4,0.30526]
[1736948777410,0.30523,3276.7,3276.4,0.30526]
[1736948777914,4.5763,3276.8,3276.5,3.2078]
[1736948778419,4.88152,3276.8,3276.5,3.2078]
[1736948778914,9.3907637,3277.3,3276.5,3.2078]
[1736948779115,9.3907637,3277.3,3276.6,0.30524]
[1736948779315,3.32231855,3277.2,3276.5,3.2078]
[1736948779516,0.30522,3276.8,3276.5,3.2078]
[1736948779816,3.32231855,3277.2,3276.5,3.51304]
[1736948780114,3.32231855,3277.2,3276.5,3.2078]
[1736948780310,3.32231855,3277.2,3276.5,5.57002449]
[1736948780516,0.3052,3277.0,3276.9,3.2078]
[1736948780718,0.30522,3276.9,3276.4,3.2078]
[1736948781012,3.32231855,3277.2,3276.8,3.2078]
[1736948781216,4.6176,3277.3,3276.8,3.2078]
[1736948781512,0.30521,3276.9,3276.8,3.2078]
[1736948781814,3.21453493,3277.2,3276.5,0.30525]
[1736948782114,3.21453493,3277.2,3276.4,3.2078]
[1736948782421,4.6176,3277.3,3276.8,3.2078]
[1736948782919,0.3052,3277.1,3276.8,3.51302]
[1736948783119,4.6176,3277.3,3276.8,3.2078]
[1736948783621,0.30519,3277.2,3276.9,0.30521]
[1736948783820,4.6656,3277.6,3276.9,1.881]
[1736948784016,0.30518,3277.3,3277.0,2.66742449]
[1736948784217,0.30517,3277.4,3277.1,0.30519]
[1736948784515,0.30516,3277.4,3277.3,3.2078]
[1736948784917,4.6656,3277.6,3277.3,3.2078]
[1736948785615,0.30516,3277.4,3277.3,3.2078]
[1736948786015,4.6656,3277.6,3277.3,3.2078]
[1736948786210,0.30516,3277.4,3277.3,3.2078]
[1736948786712,4.97075,3277.6,3277.3,3.2078]
[1736948786909,4.6656,3277.6,3277.5,0.30515]
[1736948787114,4.6656,3277.6,3277.3,3.2078]
[1736948787616,4.629,3278.1,3277.3,5.57002449]
[1736948787817,10.88775463,3278.6,3276.9,1.881]
[1736948787818,12.6980637,3278.5,3277.7,5.57002449]
[1736948788120,0.30508,3278.4,3278.1,3.2078]
[1736948788316,9.4902637,3278.5,3278.4,0.30507]
[1736948788619,9.4902637,3278.5,3278.1,3.2078]
[1736948788825,0.3051,3278.2,3277.7,5.0878]
[1736948789118,0.3051,3278.1,3277.7,3.2078]
[1736948789321,4.7171,3278.5,3277.7,3.2078]
[1736948789520,0.30513,3277.8,3277.7,3.2078]
[1736948789822,0.30514,3277.7,3277.3,3.2078]
[1736948790013,2.36222449,3278.1,3277.3,3.2078]
[1736948790213,2.36222449,3277.5,3276.9,3.2078]
[1736948790418,0.30519,3277.2,3276.9,3.2078]
[1736948790622,0.3052,3277.1,3276.9,3.2078]
[1736948790817,4.9539,3277.1,3276.6,0.30524]
[1736948791317,4.9539,3277.1,3276.5,3.2078]
[1736948791520,4.6088,3277.4,3276.9,3.2078]
[1736948791724,4.6088,3277.4,3277.0,0.3052]
[1736948792126,4.91397,3277.4,3276.9,0.30521]
[1736948792313,4.6088,3277.4,3276.9,3.2078]
[1736948792516,8.1617,3278.0,3277.1,2.36222449]
[1736948793021,4.7731637,3278.1,3277.8,0.30512]
[1736948793022,3.49958234,3277.9,3277.8,0.30512]
[1736948793325,4.7731637,3278.4,3278.2,0.30509]
[1736948793523,4.7731637,3278.4,3278.1,3.51289]